bitfinex/quotes_ETHUSD_20220305
["timestamp","ask_amount","ask_price","bid_price","bid_amount"]
[1646515366973,1.53704948,2667.2,2666.5,1.54]
[1646515367216,1.53704948,2667.2,2666.5,0.54]
[1646515368319,0.9872376,2666.7,2666.5,0.54]
[1646515368520,0.00349919,2667.4,2666.5,0.54]
[1646515368718,0.00349919,2667.4,2666.6,1.1484]
[1646515368921,0.00349919,2667.4,2666.6,1.6884]
[1646515369319,1.53710454,2667.4,2666.6,1.6884]
[1646515369519,1.53710454,2667.3,2666.6,1.6884]
[1646515369720,1.53710454,2667.2,2666.6,1.6884]
[1646515369920,1.53710454,2667.1,2666.6,1.6884]
[1646515370121,1.19340852,2666.7,2666.6,1.6884]
[1646515370321,1.19340852,2666.7,2666.6,0.54]
[1646515371969,0.00349908,2667.4,2666.6,0.54]
[1646515372369,0.00445908,2667.4,2666.6,0.54]
[1646515372672,1.53712524,2667.3,2666.6,0.54]
[1646515372869,1.53712524,2667.2,2666.6,1.47774]
[1646515373068,0.88636348,2667.1,2666.6,1.47774]
[1646515375717,0.00349919,2667.4,2666.6,1.47774]
[1646515376219,0.00445919,2667.4,2666.6,1.47774]
[1646515376419,1.53703256,2667.3,2666.6,1.47774]
[1646515376824,1.53703256,2667.2,2666.6,1.47774]
[1646515377018,0.86938653,2667.3,2666.6,1.47774]
[1646515377220,0.86837744,2667.3,2666.6,1.47774]
[1646515377820,4.70623532,2667.7,2666.6,1.47774]
[1646515378018,4.70623532,2667.7,2666.6,4.82333116]
[1646515378019,0.00349924,2667.4,2666.6,4.82333116]
[1646515378474,0.00349924,2667.4,2666.6,5.82333116]
[1646515378668,1.54045662,2667.4,2666.6,5.82333116]
[1646515378874,0.00349924,2667.4,2666.6,5.82333116]
[1646515379070,0.00096,2667.6,2666.6,5.82333116]
[1646515379071,2.6752338,2667.5,2666.6,5.82333116]
[1646515379272,0.00349927,2667.4,2666.6,8.97482577]
[1646515379477,0.00349927,2667.4,2666.8,2.21389461]
[1646515379674,0.00349927,2667.4,2666.9,3.32224884]
[1646515379874,0.00349927,2667.4,2667.0,0.93742]
[1646515380075,0.00096,2667.6,2667.1,0.54]
[1646515380271,4.70527532,2667.7,2667.1,0.54]
[1646515380474,0.00349935,2667.4,2667.1,0.54]
[1646515381073,0.00349935,2667.4,2667.1,2.41484]
[1646515381474,0.00148179,2667.4,2667.1,2.41484]
[1646515381675,0.00148179,2667.4,2667.1,4.81936333]
[1646515381874,0.00148179,2667.4,2667.1,5.81936333]
[1646515382084,0.00148179,2667.4,2667.2,1.2207]
[1646515382317,0.00148179,2667.4,2667.3,0.54]
[1646515382519,1.5376651,2668.2,2667.3,0.54]
[1646515382720,0.00148182,2667.4,2667.3,0.54]
[1646515383820,1.15286353,2667.6,2667.3,0.54]
[1646515384020,0.00374637,2667.5,2667.3,0.54]
[1646515385023,1.15286353,2667.6,2667.3,0.54]
[1646515385225,0.00374633,2667.5,2667.3,0.54]
[1646515386094,1.15286353,2667.6,2667.3,0.54]
[1646515386495,0.00374633,2667.5,2667.3,0.54]
[1646515387301,1.15286353,2667.6,2667.3,0.54]
[1646515387699,0.00374633,2667.5,2667.3,0.54]
[1646515388499,1.53667742,2668.1,2667.3,3.3523054]
[1646515388500,0.00096,2668.0,2667.3,3.3523054]
[1646515388702,1.53667742,2668.0,2667.3,3.3523054]
[1646515389001,0.00096,2668.2,2667.3,4.3523054]
[1646515389002,0.0036227,2667.5,2667.3,4.3523054]
[1646515389819,1.11174984,2668.1,2667.5,0.93735]
[1646515390017,1.53664226,2668.0,2667.6,1.4773411]
[1646515390414,1.11174984,2668.1,2667.6,1.4773411]
[1646515390815,1.53663629,2668.0,2667.6,1.4773411]
[1646515391214,1.54025863,2668.0,2667.6,1.4773411]
[1646515391414,1.54025863,2668.0,2667.6,0.54]
[1646515392216,1.53663629,2668.0,2667.6,0.54]
[1646515392421,0.00350807,2667.9,2667.2,2.7607]
[1646515392617,1.19906364,2667.3,2667.2,1.7607]
[1646515392816,1.19906364,2667.3,2667.2,1.54]
[1646515393017,1.19906364,2667.3,2667.2,0.54]
[1646515394063,1.19906364,2667.3,2666.9,0.54]
[1646515394261,1.19906364,2667.3,2666.9,0.53910725]
[1646515396069,0.0035016,2667.4,2666.9,0.53910725]
[1646515396468,0.0035016,2667.4,2667.0,1.2236]
[1646515396668,0.0035016,2667.4,2667.1,1.47751]
[1646515396870,1.53686334,2667.8,2667.1,1.47751]
[1646515397228,0.00350165,2667.4,2667.1,1.47751]
[1646515397419,0.00350165,2667.4,2667.1,2.4149962]
[1646515398222,1.06514235,2667.6,2667.1,2.4149962]
[1646515398424,0.00350168,2667.4,2667.1,2.4149962]
[1646515399324,0.00096,2667.9,2667.1,2.4149962]
[1646515399522,0.00096,2667.9,2667.1,4.82018373]
[1646515399523,0.00350214,2667.4,2667.1,4.82018373]
[1646515399722,0.00350214,2667.4,2667.1,3.4149962]
[1646515399923,0.00350214,2667.4,2667.1,2.4149962]
[1646515400128,0.00350214,2667.4,2667.1,3.4149962]
[1646515400323,0.00350214,2667.4,2667.1,2.4149962]
[1646515400522,0.97186701,2667.9,2667.1,3.4149962]
[1646515400722,0.00350214,2667.4,2667.1,4.81855673]
[1646515400976,0.00350214,2667.4,2667.1,5.81855673]
[1646515401174,0.00350214,2667.4,2667.1,3.4149962]
[1646515401375,0.00350214,2667.4,2667.1,2.4149962]
[1646515401577,0.00350214,2667.4,2667.1,4.81903324]
[1646515401774,0.00096,2667.8,2667.1,5.81903324]
[1646515401974,0.00350214,2667.4,2667.1,5.81903324]
[1646515402176,0.00350214,2667.4,2667.1,3.4149962]
[1646515402578,0.00350214,2667.4,2667.1,2.4149962]
[1646515402978,0.00096,2667.8,2667.1,2.4149962]
[1646515403177,0.0035021,2667.4,2667.1,2.4149962]
[1646515404180,0.00096,2667.8,2667.1,2.4149962]
[1646515404382,0.0035021,2667.4,2667.1,1.47751]
[1646515405443,0.00096,2667.8,2667.1,1.47751]
[1646515405639,0.97090701,2667.9,2667.1,1.47751]
[1646515405640,0.0035021,2667.4,2667.1,1.47751]
[1646515406542,0.00096,2667.8,2667.1,1.47751]
[1646515406742,0.00350211,2667.4,2667.1,1.47751]
[1646515407744,0.00096,2667.8,2667.1,1.47751]
[1646515407949,0.00350211,2667.4,2667.1,1.47751]
[1646515408868,0.00350211,2667.4,2667.1,3.88267052]
[1646515409167,0.00096,2667.8,2667.1,4.88267052]
[1646515409370,0.97090701,2667.9,2667.3,0.9374414]
[1646515409569,0.00096,2667.8,2667.4,0.54]
[1646515409872,0.97090701,2667.9,2667.4,0.54]
[1646515412718,0.00350426,2667.8,2667.4,0.54]
[1646515413819,0.97090701,2667.9,2667.4,0.54]
[1646515414021,0.00350428,2667.7,2667.4,0.54]
[1646515415023,0.97090701,2667.9,2667.4,0.54]
[1646515415221,0.00350432,2667.7,2667.4,0.54]
[1646515416170,0.97090701,2667.9,2667.4,0.54]
[1646515416373,0.00350432,2667.7,2667.4,0.54]
[1646515417375,0.97090701,2667.9,2667.4,0.54]
[1646515417577,0.00350432,2667.7,2667.4,0.54]
[1646515418379,0.00267213,2667.7,2667.4,0.54]
[1646515418577,0.97090701,2667.9,2667.4,0.54]
[1646515418779,0.00350432,2667.7,2667.4,0.54]
[1646515419586,0.00350432,2667.7,2666.8,2.18702048]
[1646515419857,1.53669321,2667.7,2666.8,1.64702048]
[1646515420061,3.5,2667.6,2666.8,0.18872048]
[1646515420258,1.53669321,2667.5,2666.8,0.00132048]
[1646515420458,4.72669931,2667.4,2666.6,0.00132048]
[1646515420657,4.72669931,2667.4,2666.4,0.00132048]
[1646515420658,0.91376508,2666.5,2666.4,0.00132048]
[1646515420861,0.91376508,2666.5,2666.3,7.5574]
[1646515421055,0.91376508,2666.5,2666.3,7.37]
[1646515422757,0.91376508,2666.5,2666.3,7.361809]
[1646515424672,0.91376508,2666.5,2666.4,0.1875]
[1646515425075,0.91376508,2666.5,2666.2,0.1875]
[1646515425275,1.2084,2667.3,2666.2,0.1875]
[1646515425481,3.5,2667.5,2666.3,0.00132048]
[1646515425682,1.53712085,2667.4,2666.4,0.1874]
[1646515425991,3.5,2667.3,2666.5,0.00132048]
[1646515426183,2.30672319,2667.6,2666.5,0.00132048]
[1646515426383,0.92473459,2667.2,2666.5,0.54132048]
[1646515426583,0.92473459,2667.2,2666.6,0.00132048]
[1646515426781,0.92473459,2667.2,2666.6,0.54]
[1646515426982,0.92473459,2667.2,2666.6,1.47772]
[1646515427222,0.92473459,2667.2,2666.7,0.9376453]
[1646515427620,0.92473459,2667.2,2666.7,1.4776453]
[1646515428822,0.92473459,2667.2,2666.7,0.54]
[1646515429822,0.82473459,2667.2,2666.7,0.54]
[1646515442217,0.82473459,2667.2,2666.5,0.1874]
[1646515442419,0.87388591,2666.7,2666.5,0.1874]
[1646515442620,0.87388591,2666.7,2666.6,0.00132048]
[1646515442817,0.87388591,2666.7,2666.5,0.1874]
[1646515443022,3.5,2667.5,2666.5,0.1874]
[1646515443221,8.30486637,2667.6,2666.6,0.00132048]
[1646515443423,1.53704617,2667.5,2666.6,0.00132048]
[1646515444223,1.14335591,2667.2,2666.6,0.00132048]
[1646515444430,5.90426647,2667.6,2666.7,1.47769]
[1646515444623,5.90426647,2667.6,2666.8,0.54]
[1646515444824,4.72026647,2667.6,2666.8,0.54]
[1646515445025,4.7189906,2667.6,2666.8,0.54]
[1646515445426,1.1595372,2667.4,2666.8,0.54]
[1646515450125,1.15799495,2667.4,2666.8,0.54]
[1646515453569,4.72363355,2667.6,2666.8,0.54]
[1646515453771,4.72267355,2667.6,2666.8,0.54]
[1646515454571,4.7189906,2667.6,2666.8,0.54]
[1646515454780,4.7226736,2667.6,2666.8,0.54]
[1646515455176,3.5,2667.5,2666.8,0.54]
[1646515455377,1.5370614,2667.4,2666.7,1.18632048]
[1646515455578,1.5370614,2667.4,2666.7,0.00132048]
[1646515455579,3.5,2667.3,2666.7,0.00132048]
[1646515455775,3.5,2667.3,2666.5,0.18872048]
[1646515455974,0.00096,2667.5,2666.5,0.18872048]
[1646515455975,3.50096,2667.5,2666.5,0.18872048]
[1646515456174,1.09777349,2666.6,2666.5,0.1874]
[1646515458523,1.204,2667.2,2666.5,0.1874]
[1646515458723,3.50096,2667.5,2666.5,1.12519]
[1646515458923,1.537061,2667.4,2666.6,0.00130481]
[1646515459122,1.537061,2667.4,2666.5,1.66519]
[1646515459333,1.537061,2667.4,2666.6,0.54]
[1646515459525,0.00096,2667.5,2666.6,0.54130481]
[1646515459830,0.00096,2667.5,2666.7,0.00130481]
[1646515459831,0.98504387,2667.3,2666.7,0.00130481]
[1646515460032,0.98504387,2667.3,2666.8,0.54]
[1646515463668,0.98504387,2667.3,2666.7,0.00130481]
[1646515463869,0.98504387,2667.3,2666.6,1.2039]
[1646515464273,1.53705651,2667.2,2666.6,1.2039]
[1646515464926,5.03705651,2667.2,2666.6,1.2039]
[1646515465132,0.98504387,2667.3,2666.6,1.2039]
[1646515465327,0.93344329,2666.7,2666.6,1.2039]
[1646515465529,0.93344329,2666.7,2666.3,0.7275]
[1646515465728,0.93344329,2666.7,2666.3,0.54]
[1646515465929,1.03323183,2667.0,2666.4,3.51333661]
[1646515466128,1.03323183,2667.0,2666.4,3.51463491]
[1646515466332,1.21228641,2666.8,2666.4,0.01463491]
[1646515466528,0.1874,2667.7,2666.4,0.01333661]
[1646515466729,1.53710268,2667.6,2666.4,3.5012983]
[1646515466928,1.53710268,2667.5,2666.4,3.5012983]
[1646515467131,1.53710268,2667.4,2666.4,0.0012983]
[1646515467431,0.00333254,2667.6,2666.4,0.0012983]
[1646515467432,1.53710268,2667.3,2666.4,0.0012983]
[1646515467636,1.53710268,2667.2,2666.4,0.0012983]
[1646515467833,0.9622116,2666.9,2666.4,0.0012983]
[1646515468031,0.9622116,2666.9,2666.5,0.94113976]
[1646515468482,0.00333817,2667.7,2666.5,0.94113976]
[1646515468670,0.00333817,2667.7,2666.6,3.5012983]
[1646515468871,1.54034307,2667.7,2666.7,0.5412983]
[1646515469070,5.91133114,2667.9,2666.8,3.5]
[1646515469071,1.5370049,2667.6,2666.8,3.5]
[1646515469272,1.5370049,2667.5,2666.9,0.93765]
[1646515469471,1.5370049,2667.4,2667.0,1.14849886]
[1646515469776,1.00703236,2667.6,2667.0,4.64849886]
[1646515469975,1.53690262,2667.5,2667.0,4.64849886]
[1646515472226,1.53690262,2667.5,2667.0,1.14849886]
[1646515478678,1.53690262,2667.5,2667.0,4.64849886]
[1646515478875,1.53690262,2667.4,2667.0,4.64849886]
[1646515479074,0.00333325,2667.7,2667.0,4.64849886]
[1646515479479,1.54024204,2667.7,2667.0,5.64849886]
[1646515479732,1.54024204,2667.7,2667.0,2.14849886]
[1646515479927,1.53818858,2667.7,2667.0,1.14849886]
[1646515480925,1.53690879,2667.7,2667.0,1.14849886]
[1646515481328,1.53818858,2667.7,2667.0,1.14849886]
[1646515481927,1.53818858,2667.7,2666.9,4.5]
[1646515482128,1.53690879,2667.7,2666.9,5.04]
[1646515482429,1.54059454,2667.7,2666.9,1.54]
[1646515482827,1.54059454,2667.7,2666.9,0.54]
[1646515483235,1.54059454,2667.7,2666.9,1.50982019]
[1646515483484,1.53690879,2667.7,2666.9,1.50982019]
[1646515483673,1.54059452,2667.7,2666.9,1.50982019]
[1646515485784,0.1874,2668.0,2666.9,1.50982019]
[1646515485979,0.00354505,2667.7,2667.0,1.157]
[1646515486180,0.1874,2668.3,2668.2,0.1874]
[1646515486381,0.51890635,2667.7,2667.1,3.5]
[1646515486581,1.52094225,2667.7,2667.0,1.157]
[1646515487221,1.52094225,2667.7,2666.9,0.96982019]
[1646515487423,0.58670396,2667.7,2666.7,0.0012983]
[1646515488224,0.58670396,2667.7,2666.5,1.157]
[1646515488427,1.22653622,2667.2,2666.6,1.18517238]
[1646515488626,1.22653622,2667.2,2666.7,0.00130532]
[1646515488827,0.2666,2667.8,2666.6,5.68386706]
[1646515489023,0.00097711,2667.7,2666.7,0.00130532]
[1646515489828,0.00097711,2667.7,2667.2,1.12846497]
[1646515489829,1.2032761,2667.7,2667.2,1.12846497]
[1646515490028,1.20424976,2667.7,2667.2,1.12846497]
[1646515490228,1.2032761,2667.7,2667.2,1.12846497]
[1646515493589,0.00097366,2668.2,2667.2,1.12846497]
[1646515494085,0.00097366,2668.3,2667.2,1.12846497]
[1646515494488,0.00097366,2668.3,2667.2,1.13223705]
[1646515494489,0.00377113,2667.9,2667.2,1.13223705]
[1646515495329,1.12043398,2668.0,2667.2,1.12846497]
[1646515495730,0.00377105,2667.9,2667.2,1.13223697]
[1646515496729,1.12140764,2668.0,2667.2,1.12846497]
[1646515496929,0.00377105,2667.9,2667.2,1.13223697]
[1646515497731,1.12043398,2668.0,2667.2,1.12846497]
[1646515498131,0.00377105,2667.9,2667.2,1.13223697]
[1646515498977,1.12043398,2668.0,2667.2,1.12846497]
[1646515499177,1.12043398,2668.0,2666.9,5.6619]
[1646515499379,0.00474471,2667.9,2667.2,0.003772]
[1646515499788,0.69206452,2667.9,2667.2,0.003772]
[1646515500183,0.68829347,2667.9,2666.9,1.1619]
[1646515500386,1.01164601,2667.4,2666.9,2.19147919]
[1646515500590,1.01164601,2667.4,2667.2,0.003772]
[1646515501392,1.01164601,2667.4,2666.9,2.19147919]
[1646515501589,1.01164601,2667.4,2667.2,0.00377194]
[1646515502628,1.01164601,2667.4,2666.9,2.19147919]
[1646515503328,1.01164601,2667.4,2667.0,3.5]
[1646515503529,1.01164601,2667.4,2666.9,2.19147919]
[1646515503730,0.00097366,2667.9,2666.9,2.19147919]
[1646515503938,0.00097366,2667.9,2667.0,3.5]
[1646515504132,0.0024475,2667.9,2667.0,3.5]
[1646515504532,0.0024475,2667.9,2667.0,4.5]
[1646515504834,0.00147384,2667.9,2667.0,4.5]
[1646515505034,0.68829347,2668.1,2667.0,4.5]
[1646515505234,1.17450444,2667.9,2667.4,1.02412655]
[1646515505634,0.00147398,2667.9,2667.4,1.02412655]
[1646515505835,0.00147398,2667.9,2667.5,3.5]
[1646515506086,0.00147398,2667.9,2667.5,4.04]
[1646515506280,0.00097366,2668.1,2667.5,6.1855]
[1646515506487,0.00377033,2667.9,2667.5,6.1855]
[1646515507185,0.00377033,2667.9,2667.5,2.6855]
[1646515507384,1.53785267,2668.1,2667.5,2.1455]
[1646515507582,1.53687901,2668.1,2667.5,1.1455]
[1646515507784,0.00377033,2667.9,2667.5,1.1455]
[1646515508583,1.53687901,2668.0,2667.5,1.1455]
[1646515508783,1.53687901,2667.9,2667.5,1.1455]
[1646515508988,1.53687901,2667.8,2667.4,4.5]
[1646515509183,0.97024013,2667.7,2667.4,4.5]
[1646515509384,0.97024013,2667.7,2667.4,1.0]
[1646515509584,0.97024013,2667.7,2667.2,1.18307128]
[1646515509833,1.536866,2667.6,2667.2,1.1793]
[1646515510037,1.536866,2667.6,2667.2,1.1830712]
[1646515510231,1.536866,2667.6,2667.2,0.0037712]
[1646515511032,1.536866,2667.6,2667.1,1.11672022]
[1646515511232,1.536866,2667.6,2667.2,0.00364384]
[1646515512039,1.536866,2667.6,2667.2,3.50364384]
[1646515512237,0.00097366,2668.1,2667.2,3.50364384]
[1646515512238,0.00097366,2668.1,2667.2,4.5]
[1646515512438,1.53775229,2668.2,2667.3,1.1354]
[1646515512642,0.00364292,2667.9,2667.3,1.1354]
[1646515513238,2.54696302,2667.9,2667.3,1.1354]
[1646515513486,1.53677863,2667.8,2667.3,1.1354]
[1646515514080,1.53677863,2667.8,2667.4,3.5]
[1646515515481,1.53677863,2667.7,2667.4,3.5]
[1646515515683,0.00364733,2667.9,2667.7,0.00135907]
[1646515515882,1.53672611,2668.2,2667.7,0.00135907]
[1646515516182,1.2202,2668.6,2667.4,5.38880907]
[1646515516183,0.0036473,2667.9,2667.4,5.38880907]
[1646515516383,0.0036473,2667.9,2667.7,0.90622729]
[1646515516584,0.0036473,2667.9,2667.8,3.5]
[1646515517096,1.53663591,2668.1,2667.8,3.5]
[1646515517328,0.00364735,2668.0,2667.8,3.5]
[1646515517529,0.00364735,2668.0,2667.7,4.97342598]
[1646515517731,0.00364735,2668.0,2667.7,5.97342598]
[1646515518128,0.00364735,2668.0,2667.7,4.97342598]
[1646515518328,1.53663591,2668.1,2667.7,4.97342598]
[1646515518530,0.00351688,2668.0,2667.7,4.97342598]
[1646515519528,1.53663591,2668.1,2667.7,4.97342598]
[1646515519729,0.00351688,2668.0,2667.7,4.97342598]
[1646515521776,1.53663591,2668.1,2667.8,3.5]
[1646515521983,1.53663591,2668.0,2667.8,3.5]
[1646515522178,0.00352567,2668.0,2667.8,3.5]
[1646515522581,0.00352567,2668.0,2667.8,5.6667]
[1646515522779,0.00352567,2668.0,2667.9,3.5]
[1646515522979,1.53660871,2668.2,2667.9,4.7262119]
[1646515523178,1.53660871,2668.1,2667.9,5.7262119]
[1646515523482,0.00352563,2668.0,2667.9,5.7262119]
[1646515524280,1.53656691,2668.3,2667.9,5.7262119]
[1646515524485,0.0035256,2668.1,2667.9,5.7262119]
[1646515524723,1.44106617,2668.4,2667.9,5.7262119]
[1646515524929,0.91218384,2668.5,2667.9,5.7262119]
[1646515525531,0.91218384,2668.5,2667.9,2.2262119]
[1646515525732,0.91218384,2668.5,2667.9,1.2262119]
[1646515527234,0.91218384,2668.5,2667.9,4.7262119]
[1646515527433,0.91218384,2668.5,2667.9,1.2262119]
[1646515527634,0.91218384,2668.5,2667.9,2.2262119]
[1646515527835,0.91218384,2668.5,2667.9,1.2262119]
[1646515528034,0.00147415,2668.3,2667.9,1.2262119]
[1646515528235,0.00147415,2668.3,2667.8,2.1667]
[1646515528485,0.00147415,2668.3,2667.8,1.1667]
[1646515529176,0.00377005,2668.2,2667.8,1.1667]
[1646515530182,0.00097845,2668.4,2667.8,4.6667]
[1646515530382,0.91218384,2668.5,2667.8,4.6667]
[1646515530581,0.00377002,2668.2,2667.8,5.6667]
[1646515531384,0.00097845,2668.4,2667.8,5.6667]
[1646515531584,0.91218384,2668.5,2667.8,5.6667]
[1646515531784,0.00377002,2668.2,2667.8,5.6667]
[1646515532624,0.00097845,2668.4,2667.8,5.6667]
[1646515532822,0.00377002,2668.2,2667.8,5.6667]
[1646515533823,0.00097845,2668.4,2667.8,5.6667]
[1646515534024,0.00364278,2668.2,2667.8,5.6667]
[1646515535027,0.00097845,2668.4,2667.8,5.6667]
[1646515535227,0.91218384,2668.5,2667.8,5.6667]
[1646515535228,0.00364278,2668.2,2667.8,5.6667]
[1646515536177,0.00097845,2668.4,2667.8,5.6667]
[1646515536374,0.91218384,2668.5,2667.8,5.6667]
[1646515536575,0.00364278,2668.2,2667.8,5.6667]
[1646515537481,0.00097845,2668.4,2667.8,5.6667]
[1646515537676,0.00353128,2668.2,2667.8,5.6667]
[1646515537880,0.00353128,2668.2,2667.8,2.1667]
[1646515538282,0.00353128,2668.2,2667.8,1.1667]
[1646515538681,0.00097845,2668.4,2667.8,1.1667]
[1646515538880,0.00353128,2668.2,2667.8,1.1667]
[1646515539722,0.00353128,2668.2,2667.8,4.6667]
[1646515539928,0.00097845,2668.4,2667.8,4.6667]
[1646515540133,0.91218384,2668.5,2667.8,5.6667]
[1646515540330,0.00353128,2668.2,2667.8,1.1667]
[1646515541029,0.00097845,2668.4,2667.8,1.1667]
[1646515541231,1.59950365,2668.5,2667.8,1.1667]
[1646515541431,0.00352434,2668.2,2667.8,1.1667]
[1646515542231,0.93257474,2667.9,2667.8,1.1667]
[1646515542433,0.93257474,2667.9,2667.3,3.2654]
[1646515542636,0.93257474,2667.9,2667.5,0.00352537]
[1646515543488,0.935096,2667.9,2667.2,5.99791011]
[1646515543678,0.935096,2667.9,2667.5,0.0035252]
[1646515544078,0.00252126,2667.9,2667.5,0.0035252]
[1646515544681,0.00252126,2667.9,2667.2,5.99791011]
[1646515544884,0.00252126,2667.9,2667.5,0.00352568]
[1646515545388,0.00252126,2667.9,2667.7,1.00957905]
[1646515549328,0.00252126,2667.9,2667.6,1.2166]
[1646515550131,0.00121176,2667.9,2667.6,1.2166]
[1646515551677,1.53783452,2667.9,2667.6,1.2166]
[1646515551876,1.53662276,2667.8,2667.3,3.4488]
[1646515552083,0.87433926,2667.5,2667.1,1.26270475]
[1646515552282,0.87686052,2667.5,2667.1,1.26270475]
[1646515552482,0.00252126,2667.5,2667.1,1.26270475]
[1646515553086,0.00252126,2667.5,2667.1,1.2486]
[1646515553287,0.00252126,2667.5,2667.2,0.00352581]
[1646515554284,0.00252126,2667.5,2667.1,1.2486]
[1646515554486,0.00252126,2667.5,2667.2,0.00352577]
[1646515555534,0.00252126,2667.5,2667.1,4.16865379]
[1646515555741,0.00252126,2667.5,2667.2,0.00352578]
[1646515556635,0.00252126,2667.5,2667.2,1.4774941]
[1646515557037,0.00252126,2667.5,2667.2,1.48101988]
[1646515557837,0.00252126,2667.5,2667.2,1.4774941]
[1646515558242,0.00252126,2667.5,2667.2,1.48101988]
[1646515559184,0.00252126,2667.5,2667.2,1.4774941]
[1646515559383,0.00252126,2667.5,2667.2,1.48101988]
[1646515560389,0.00252126,2667.5,2667.2,1.4774941]
[1646515560588,0.00252126,2667.5,2667.2,1.48101988]
[1646515561488,0.00252126,2667.5,2667.2,1.4774941]
[1646515561690,0.00252126,2667.5,2667.2,1.48101988]
[1646515562736,0.00252126,2667.5,2667.2,1.4774941]
[1646515563036,0.00252126,2667.5,2667.2,1.48101988]
[1646515563839,0.00252126,2667.5,2667.2,1.4774941]
[1646515564235,0.00252126,2667.5,2667.2,1.48101988]
[1646515565038,0.00252126,2667.5,2667.2,1.4774941]
[1646515565438,0.00252126,2667.5,2667.2,1.48101988]
[1646515566290,0.00252126,2667.5,2667.2,1.4774941]
[1646515566491,0.00252126,2667.5,2667.2,1.48101988]
[1646515567091,0.00252126,2667.5,2667.2,0.54352578]
[1646515567493,0.00252126,2667.5,2667.2,0.54]
[1646515567895,0.00252126,2667.5,2667.2,0.54352578]
[1646515568699,0.00252126,2667.5,2667.2,0.54]
[1646515568895,0.00252126,2667.5,2667.2,0.54352578]
[1646515569942,0.00252126,2667.5,2667.1,2.2486]
[1646515570242,0.00252126,2667.5,2667.2,0.00352578]
[1646515570644,1.20883021,2667.4,2667.2,0.00352578]
[1646515570842,1.53697224,2667.3,2667.2,0.00352578]
[1646515571041,1.5394935,2667.3,2667.0,0.1874]
[1646515573241,1.53860744,2667.3,2667.0,0.1874]
[1646515573888,1.53860744,2667.3,2667.0,0.00367005]
[1646515573889,0.00252126,2667.3,2667.0,0.00367005]
[1646515574686,0.00252126,2667.3,2666.8,0.54130532]
[1646515574888,0.00252126,2667.3,2667.0,0.94129005]
[1646515575887,0.00252126,2667.3,2667.0,2.0029791]
[1646515576085,0.00252126,2667.3,2667.0,2.00664915]
[1646515577087,0.00252126,2667.3,2667.0,2.0029791]
[1646515577328,0.00252126,2667.3,2667.0,2.00652794]
[1646515578334,0.00252126,2667.3,2667.0,2.0029791]
[1646515578536,0.00252126,2667.3,2667.0,2.00645913]
[1646515579538,0.00252126,2667.3,2667.0,2.0029791]
[1646515579738,0.00252126,2667.3,2667.0,2.00645913]
[1646515580736,0.00252126,2667.3,2667.0,1.0653591]
[1646515580993,0.00252126,2667.3,2667.0,1.06885173]
[1646515581984,0.00252126,2667.3,2667.0,1.0653591]
[1646515582188,0.00252126,2667.3,2667.0,1.0686923]
[1646515583188,0.00252126,2667.3,2667.0,1.0653591]
[1646515583387,0.00252126,2667.3,2667.0,1.0686923]
[1646515584397,0.00252126,2667.3,2667.0,1.0653591]
[1646515584594,0.00252126,2667.3,2667.0,1.06869642]
[1646515585548,0.00252126,2667.3,2667.0,1.0653591]
[1646515585748,0.00252126,2667.3,2667.0,1.06869254]
[1646515586751,0.00252126,2667.3,2667.0,1.0653591]
[1646515586954,0.00252126,2667.3,2667.0,1.06869254]
[1646515587952,0.00252126,2667.3,2667.0,1.0653591]
[1646515588152,0.00252126,2667.3,2667.0,1.06869226]
[1646515589191,0.00252126,2667.3,2667.0,1.0653591]
[1646515589389,0.00252126,2667.3,2667.0,1.06869224]
[1646515589598,0.00252126,2667.3,2667.0,0.00333314]
[1646515590394,0.00252126,2667.3,2666.9,1.3191]
[1646515590594,0.00252126,2667.3,2667.0,0.00333314]
[1646515590796,0.92132204,2667.2,2667.0,0.00333314]
[1646515591095,0.00252126,2667.2,2667.0,0.00333314]
[1646515591494,0.00252126,2667.2,2666.9,1.3222]
[1646515591995,0.00252126,2667.2,2667.0,0.00333321]
[1646515592834,0.00252126,2667.2,2666.9,1.3222]
[1646515593036,0.00252126,2667.2,2667.0,0.00333323]
[1646515593434,0.00127782,2667.2,2667.0,0.00333323]
[1646515593636,0.00379908,2667.2,2667.0,0.00333323]
[1646515593934,0.00379908,2667.2,2666.9,1.3222]
[1646515594134,0.00379908,2667.2,2667.0,0.00333323]
[1646515595137,0.00379908,2667.2,2666.9,2.25988]
[1646515595337,0.00379908,2667.2,2667.0,0.54]
[1646515595536,0.00379908,2667.2,2667.0,0.54333323]
[1646515596383,0.00379908,2667.2,2667.0,0.54]
[1646515596580,0.00379908,2667.2,2667.0,0.54333323]
[1646515597583,0.00379908,2667.2,2667.0,0.54]
[1646515597784,0.00379908,2667.2,2667.0,0.54333323]
[1646515598683,0.00379908,2667.2,2667.0,0.54]
[1646515599083,0.00379908,2667.2,2667.0,0.54333323]
[1646515600038,0.00379908,2667.2,2667.0,0.54]
[1646515600234,0.00379908,2667.2,2667.0,0.54333322]
[1646515601236,0.00379908,2667.2,2667.0,0.54]
[1646515601435,0.00379908,2667.2,2667.0,0.54333322]
[1646515602436,0.00379908,2667.2,2667.0,0.54]
[1646515602640,0.00379908,2667.2,2667.0,0.54333322]
[1646515603683,0.00379908,2667.2,2667.0,0.54]
[1646515603884,0.00379908,2667.2,2667.0,0.54333322]
[1646515604686,0.00379908,2667.2,2667.0,0.54]
[1646515605086,0.00379908,2667.2,2667.0,0.54333322]
[1646515606087,0.00379908,2667.2,2666.9,1.3222]
[1646515606288,0.00379908,2667.2,2667.0,0.00333322]
[1646515607087,0.00379908,2667.2,2666.9,1.3222]
[1646515607333,0.00379908,2667.2,2667.0,0.00333322]
[1646515608335,0.00379908,2667.2,2666.9,1.3222]
[1646515608539,0.00379908,2667.2,2667.0,0.00333322]
[1646515609640,0.00379908,2667.2,2666.9,1.8622]
[1646515609842,0.00379908,2667.2,2667.0,0.00333322]
[1646515610845,0.00379908,2667.2,2666.9,1.8622]
[1646515611107,0.00379908,2667.2,2667.0,0.00333322]
[1646515611708,0.00379908,2667.2,2667.0,1.92338701]
[1646515611908,0.00379908,2667.2,2667.0,0.54]
[1646515612106,0.00379908,2667.2,2667.0,1.92005379]
[1646515612303,0.00379908,2667.2,2667.0,1.92338701]
[1646515613108,0.00379908,2667.2,2667.0,1.92005379]
[1646515613504,0.00379908,2667.2,2667.0,1.92338701]
[1646515614107,0.00379908,2667.2,2667.0,0.54333322]
[1646515614506,0.00379908,2667.2,2667.0,0.54]
[1646515614734,0.00379908,2667.2,2667.0,0.54333322]